Cogmind - Beta 16 @@@ ROGUE MODE // 2025.10.23 @ 17:17:29 Player: FloorSandwich Result: Self-destructed Performance ------------- Evolutions (2) 1000 Regions Visited (3) 600 Robots Destroyed (47) 235 Value Destroyed (1226) 1226 Prototype IDs (2) 40 Alien Tech Used (0) 0 Bonus (0) 0 TOTAL SCORE: 3101 Bonus ------- None Cogmind --------- Core Integrity 25/550 Matter 201/300 Energy 100/100 System Corruption 0% Temperature Cool (0) Movement Core (150) Ox2 Location -8/Materials Parts ------- > --- POWER (1) -------- (None) > --- PROPULSION (4) --- (None) > --- UTILITY (3) ------ Small Storage Unit Improved Signal Interpreter > --- WEAPON (3) ------- Flail > --- INVENTORY (8) ---- Improved Heat Sink Advanced Heat Sink Peak State ------------ > --- POWER ------------ Improved Ion Engine > --- PROPULSION ------- Aluminum Leg Aluminum Leg Aluminum Leg Improved Aluminum Leg > --- UTILITY ---------- Improved Heat Sink Small Storage Unit Improved Signal Interpreter > --- WEAPON ----------- Heavy Assault Rifle Autogun Flail > --- INVENTORY -------- Heat Sink Advanced Heat Sink Spread Laser Katana [Rating: 21] Favorites ----------- Power Ion Engine Engine Ion Engine Power Core Nuclear Core Propulsion Aluminum Leg Leg Aluminum Leg Utility Large Matter Pod Device Shield Generator Storage Large Matter Pod Processor Signal Interpreter Protection Improved Weapon Shielding Weapon Spread Laser Energy Gun Spread Laser Ballistic Gun Autogun Impact Weapon Flail Slashing Weapon Katana Special Melee Weapon Datajack Build | -11 -10 -9 -8 ------- Run | Yrd Mat Mat Mat Slots Evolved 4 | . . 2 2 Power . | . . . . Propulsion 2 | . . . 2 Utility 1 | . . 1 . Weapon 1 | . . 1 . Parts Attached 45 | 6 5 24 10 Power 7 | 1 1 4 1 Engine 5 | 1 . 3 1 Core 2 | . 1 1 . Reactor . | . . . . Propulsion 15 | 2 2 7 4 Treads . | . . . . Leg 15 | 2 2 7 4 Wheel . | . . . . Hover . | . . . . Flight . | . . . . Utility 9 | 1 1 4 3 Device 3 | . . 2 1 Storage 3 | 1 1 1 . Processor 2 | . . 1 1 Hackware . | . . . . Protection 1 | . . . 1 Artifact . | . . . . Weapon 14 | 2 1 9 2 Energy Gun 4 | . . 4 . Energy Cannon . | . . . . Ballistic Gun 7 | 2 . 4 1 Ballistic Cannon . | . . . . Launcher . | . . . . Special Weapon . | . . . . Impact Weapon 1 | . . 1 . Slashing Weapon 1 | . . . 1 Piercing Weapon . | . . . . Special Melee Weapon 1 | . 1 . . Unidentified Prototypes . | . . . . Parts Lost 20 | . 3 5 12 Power 5 | . 1 2 2 Propulsion 6 | . . 1 5 Utility 2 | . . 1 1 Weapon 7 | . 2 1 4 Highest Loss Streak 7 | . 2 2 7 To Critical Strikes . | . . . . Average Backups 3 | 1 1 4 3 Power . | . 1 . . Propulsion . | . . . . Utility . | . . . 1 Weapon 3 | . . 4 2 Tool/Special . | . . . . Unused Backups 3 | . 1 1 1 Power . | . . . . Propulsion . | . . . . Utility 2 | . 1 . 1 Weapon 1 | . . 1 . Tool/Special . | . . . . Average Slot Usage (%) 90 | . 92 92 80 Engine 6 | . 6 6 6 Core 2 | . 3 3 . Leg 22 | . 28 21 22 Device 5 | . . 7 6 Storage 15 | . 27 14 9 Processor 8 | . . 11 9 Energy Gun 12 | . . 18 2 Ballistic Gun 12 | . 22 9 16 Impact Weapon 1 | . . . 6 Peak Build Rating 21 | 6 9 16 21 Average Rating 12 | 4 6 13 15 On Entrance 6 | . 6 5 15 Avg Prop Armor Cover (%) . | . . . . Naked Turns . | . . . . Heaviest Build 24 | 13 16 24 22 Greatest Support 43 | 20 20 26 43 Greatest Overweight (x) 2 | 1 . 2 2 Average Overweight (x) . | . . . . Largest Inventory Capacity 8 | 8 8 8 8 Average Capacity 6 | 7 8 6 8 Most Carried 7 | 5 4 7 6 Average Carried 3 | 1 1 4 3 Final Capacity 8 | 8 8 8 8 Final Carried 6 | 1 4 6 2 Class Distribution -------------------- 50% | Mutant 15% | Gunner 13% | Scavenger-Gunner 11% | Tank 9% | Scavenger-Mutant Dominant Class ---------------- Mutant | -10/Materials Mutant | -9/Materials Scavenger-Mutant | -8/Materials Resources | -11 -10 -9 -8 ----------- Run | Yrd Mat Mat Mat Matter Collected 1394 | 177 418 533 266 Remotely . | . . . . Salvage Created 1721 | . 530 741 450 Parts 93 | . 30 44 19 Haulers Intercepted 3 | . 2 . 1 Recyclers Shooed . | . . . . Parts Field Recycled . | . . . . Retrieved Matter . | . . . . Parts Self-Destructed . | . . . . Prevented . | . . . . Parts Restored . | . . . . Kills | -11 -10 -9 -8 ------- Run | Yrd Mat Mat Mat Combat Hostiles Destroyed 33 | . 9 14 10 Guns 32 | . 9 13 10 AOE 1 | . . 1 . Classes Destroyed 9 | . 5 4 . Worker 5 | . 2 2 1 Tunneler 1 | . . 1 . Hauler 3 | . 2 . 1 Recycler 2 | . 1 1 . Watcher 3 | . . 3 . Swarmer 7 | . 3 . 4 Grunt 21 | . 6 10 5 Duelist 1 | . . 1 . Sentry 4 | . . 3 1 Best Kill Streak 7 | . 7 5 6 Combat Bots Only 5 | . 5 4 5 Max Kills in Single Turn 3 | . 1 3 2 Gunslinging . | . . . . Exploded 1 | . . 1 . Melee . | . . . . Uniques/NPCs Destroyed . | . . . . Combat | -11 -10 -9 -8 -------- Run | Yrd Mat Mat Mat Hostile Shots Fired 243 | . 73 70 100 Missed 51 | . 14 13 24 Hits 192 | . 59 57 76 Projectile 192 | . 59 57 76 AOE 1 | . . . 1 Critical Strikes 7 | . . . 7 Damage Taken 3157 | . 656 736 1765 Core 789 | . 125 139 525 Absorbed by Shields 27 | . . 27 . Redirected to Shielding 129 | . . . 129 Core Remaining (%) 71 | 100 50 65 . Volleys Fired 127 | . 54 36 37 Largest 3 | . 2 3 3 Hottest 195 | . 40 195 102 Shots Fired 273 | . 86 98 89 Gun 273 | . 86 98 89 Cannon . | . . . . Launcher . | . . . . Special . | . . . . Kinetic 217 | . 86 58 73 Thermal 56 | . . 40 16 Explosive . | . . . . Electromagnetic . | . . . . Robot Hit Streak 14 | . 14 14 13 Robot Miss Streak 6 | . 3 6 6 Penetration Max . | . . . . Secondary Targets 7 | . 1 4 2 Max Gunslinging Chain 1 | . 1 1 1 Shots Hit Robots 184 | . 57 68 59 Core Hits 108 | . 26 60 22 Critical Kills 1 | . . . 1 Critical Parts Destroyed . | . . . . Critical Strikes 1 | . . . 1 Destroy 1 | . . . 1 Melee Attacks 9 | . . . 9 Impact 8 | . . . 8 Slashing 1 | . . . 1 Piercing . | . . . . Sneak Attacks . | . . . . Combat Hostiles . | . . . . Follow-up Attacks 1 | . . . 1 Damage Inflicted 2675 | . 611 1041 1023 Guns 2499 | . 611 968 920 Cannons . | . . . . Explosions 73 | . . 73 . Melee 103 | . . . 103 Ramming . | . . . . Kinetic 1923 | . 611 558 754 Thermal 576 | . . 410 166 Explosive . | . . . . Electromagnetic 73 | . . 73 . Impact 89 | . . . 89 Slashing 14 | . . . 14 Piercing . | . . . . Highest Corruption . | . . . . Average Corruption . | . . . . Corruption Purged . | . . . . Corruption Blocked . | . . . . Overload Shots . | . . . . Overflow Damage 12 | . . . 12 Projectiles . | . . . . Explosions . | . . . . Melee 12 | . . . 12 Knockbacks . | . . . . Impact . | . . . . Kinetic . | . . . . Secondary . | . . . . Self-Inflicted Damage 60 | . . 60 . Shots 2 | . . 2 . Rammed . | . . . . Targets Rammed 1 | . . 1 . Kicked 1 | . . 1 . Crushed . | . . . . Highest Temperature 469 | . 30 469 69 Average Temperature 121 | . 10 171 22 Received Heat Transfer 1046 | . 288 308 450 Effects 14 | . . 14 . Shutdowns 2 | . . 2 . Energy Bleed 1 | . . 1 . Interference 1 | . . 1 . Matter Decay 2 | . . 2 . Damage (minor) 1 | . . 1 . Damage (major) 7 | . . 7 . Siege Activations . | . . . . Martial Activations . | . . . . Shielding Activations . | . . . . Robots Disrupted 1 | . . 1 . Combat Hostiles 1 | . . 1 . Robots Corrupted . | . . . . Combat Hostiles . | . . . . Parts Fried . | . . . . Impact Corruptions 1 | . . . 1 Robots Melted . | . . . . Combat Hostiles . | . . . . Parts Melted 4 | . . 2 2 Heat Transferred 917 | . . 522 395 Parts Sabotaged . | . . . . Parts Stolen . | . . . . Parts Stripped . | . . . . Power Chain Reactions 1 | . . 1 . Alert | -11 -10 -9 -8 ------- Run | Yrd Mat Mat Mat Maximum Alert Level 1 | . . 1 1 Low Security (%) 94 | 100 100 95 83 Level 1 5 | . . 4 16 Level 2 . | . . . . Level 3 . | . . . . Level 4 . | . . . . Level 5 . | . . . . High Security . | . . . . Max Security . | . . . . Peak Influence 263 | . 130 220 263 Initial 87 | . . 37 87 Average 65 | . 66 46 161 Influence Increases 1288 | . 282 482 524 Destroy 0b10 Robot/C 660 | . 180 280 200 Destroy 0b10 Robot/NC 70 | . 25 35 10 Destroy Leader 172 | . 44 86 42 Successful Hack 23 | . 3 20 . Disable Machine 45 | . . 45 . Destroy Structure 3 | . . 1 2 Lose Combat Pursuer 315 | . 30 15 270 Influence Decreases 1095 | . 192 364 539 Entered New Map 174 | . . 53 121 Time Decay 621 | . 162 261 198 Search Patrol Dispatched 100 | . . . 100 Lost Part 200 | . 30 50 120 Squads Dispatched 7 | . 1 4 2 Investigation 4 | . 1 3 . Extermination . | . . . . Reinforcement 3 | . . 1 2 Assault . | . . . . Garrison . | . . . . Intercept . | . . . . Searches Triggered 1 | . . . 1 Construction Impeded . | . . . . Haulers Reinforced . | . . . . Active Scanning Responses . | . . . . Cargo Convoy Interrupts . | . . . . Stealth | -11 -10 -9 -8 --------- Run | Yrd Mat Mat Mat Distress Signals 6 | . 2 3 1 Communications Jammed . | . . . . Distress Signals . | . . . . Times Spotted 66 | . 16 21 29 Peak Tracking Total 6 | . 6 6 5 Tactical Retreats 9 | . 1 1 7 Traps | -11 -10 -9 -8 ------- Run | Yrd Mat Mat Mat Traps Triggered 1 | . . 1 . Indirectly . | . . . . Trap Hack Attempts . | . . . . Triggered . | . . . . Disarmed 10 | . . 10 . Reprogrammed . | . . . . Reused . | . . . . Traps Extracted . | . . . . Installed . | . . . . Triggered . | . . . . Machines | -11 -10 -9 -8 ---------- Run | Yrd Mat Mat Mat Machines Disabled 3 | . . 3 . Max in Single Turn 2 | . . 2 . Machines Repaired . | . . . . Machines Dismantled . | . . . . Machines Sabotaged . | . . . . Overloaded Fab Kills . | . . . . Hacking | -11 -10 -9 -8 --------- Run | Yrd Mat Mat Mat Machines Accessed 6 | . 1 4 1 Terminals 5 | . 1 3 1 Fabricators . | . . . . Repair Stations . | . . . . Recycling Units 1 | . . 1 . Scanalyzers . | . . . . Garrison Access . | . . . . Total Hacks 27 | . 8 16 3 Successful 15 | . 4 10 1 Failed 12 | . 4 6 2 Catastrophic 1 | . . 1 . Database Lockouts . | . . . . Manual . | . . . . Terminals 25 | . 8 14 3 Fabricators . | . . . . Repair Stations . | . . . . Recycling Units 2 | . . 2 . Scanalyzers . | . . . . Garrison Access . | . . . . Terminal Hacks 13 | . 4 8 1 Record 3 | . 2 1 . Robot Analysis 1 | . . 1 . Prototype ID Bank 1 | . . 1 . Alert Level 1 | . 1 . . Locate Traps 1 | . . 1 . Disarm Traps 2 | . . 2 . Maintenance Status 1 | . 1 . . Transport Status 1 | . . . 1 Recall Investigation 1 | . . 1 . Zone Layout 1 | . . 1 . Fabricator Hacks . | . . . . Repair Station Hacks . | . . . . Recycling Unit Hacks 2 | . . 2 . Process 1 | . . 1 . Report Inventory 1 | . . 1 . Scanalyzer . | . . . . Garrison Access Hacks . | . . . . Unauthorized Hacks . | . . . . Terminals . | . . . . Fabricators . | . . . . Repair Stations . | . . . . Recycling Units . | . . . . Scanalyzers . | . . . . Garrison Access . | . . . . Data Cores Recovered . | . . . . Used . | . . . . Hacking Detections 5 | . 1 3 1 Full Trace Events 4 | . 1 3 . Feedback Events . | . . . . Feedback Blocked . | . . . . Robot Schematics Acquired . | . . . . Robots Built . | . . . . Authchips . | . . . . Time . | . . . . Total Robot Build Rating . | . . . . Part Schematics Acquired . | . . . . Parts Built . | . . . . Authchips . | . . . . Time . | . . . . Total Part Build Rating . | . . . . Part Studies Acquired . | . . . . Parts Repaired . | . . . . Time . | . . . . Parts Recycled . | . . . . Recycled Matter 27 | . . 27 . Retrieved Matter . | . . . . Retrieved Components . | . . . . Parts Scanalyzed . | . . . . Part Schematics Acquired . | . . . . Parts Damaged . | . . . . Bothacking | -11 -10 -9 -8 ------------ Run | Yrd Mat Mat Mat Used RIF Installer . | . . . . Robots Hacked . | . . . . Non-combat . | . . . . Combat . | . . . . Robot Hacks Applied . | . . . . Relay Couplers Released . | . . . . Fabnet Peak Effective % . | . . . . Robots Rewired . | . . . . Allies Hacked . | . . . . Hacks Repelled . | . . . . Allies | -11 -10 -9 -8 -------- Run | Yrd Mat Mat Mat Total Allies . | . . . . Largest Group . | . . . . Highest-Rated Group . | . . . . Highest-Rated Ally . | . . . . Total Orders . | . . . . Ally Attacks . | . . . . Total Damage . | . . . . Kills . | . . . . Allies Corrupted . | . . . . Allies Melted . | . . . . Intel | -11 -10 -9 -8 ------- Run | Yrd Mat Mat Mat Active Infowar (turns) . | . . . . Robot Analysis Total 1 | . . 1 . Derelict Logs Recovered . | . . . . Drone Launches . | . . . . Drone Recoveries . | . . . . Exploration | -11 -10 -9 -8 ------------- Run | Yrd Mat Mat Mat Turns Passed 2515 | 123 402 1588 402 Spaces Moved 1060 | 91 206 629 134 Core 26 | 23 . . 3 Treads . | . . . . Legs 1034 | 68 206 629 131 Wheels . | . . . . Hover . | . . . . Flight . | . . . . Fastest Speed 50 | 50 120 120 120 Average Speed 136 | 106 120 147 127 Slowest Speed 260 | 120 120 260 190 Overloaded Moves . | . . . . Propulsion Burnouts . | . . . . Robots Hopped . | . . . . Potential Cave-ins . | . . . . Cave-ins Triggered . | . . . . Exploration Rate (%) 21 | 5 28 42 12 Regions Visited 3 Branch Regions . Pre-discovered Areas . | . . . . Known Exits Taken 1 | . . 1 . Unknown Exits Taken 2 | 1 1 . . Scrap Searched . | . . . . Spaces Dug . | . . . . Terrain Destroyed 1 | . . 1 . Melee . | . . . . Projectile . | . . . . AOE 1 | . . 1 . Terrain Rammed . | . . . . Walls Destroyed . | . . . . Machines Disabled . | . . . . Actions | -11 -10 -9 -8 --------- Run | Yrd Mat Mat Mat Total 1903 | 117 286 1216 284 Wait 594 | 15 9 495 75 Move 1057 | 90 205 628 134 Hop . | . . . . Pick Up 44 | 6 9 19 10 Fast Attach 3 | 1 . 2 . Attach 28 | 5 2 12 9 Detach 3 | . . 2 1 Swap 18 | . 3 10 5 Drop 20 | . 4 11 5 Fire 127 | . 54 36 37 Melee 8 | . . . 8 Ram . | . . . . Kick 1 | . . 1 . Crush . | . . . . Escape Stasis . | . . . . Rewire . | . . . . Trap . | . . . . Miscellaneous . | . . . . Route ------- -11/Scrapyard -10/Materials -9/Materials -8/Materials History --------- Turn | Location | Event 5 | -11/Scrapyard | Discovered new exit (range 15) 124 | -11/Scrapyard | Entered Materials 316 | -10/Materials | Build established: Mutant 458 | -10/Materials | Discovered new exit (range 8) 526 | -10/Materials | Entered another Materials area 526 | -9/Materials | Evolved 2 slots: Utility x1, Weapon x1 2067 | -9/Materials | Discovered new exit (range 16) 2113 | -9/Materials | Identified exit to Materials 2114 | -9/Materials | Entered another Materials area 2114 | -8/Materials | Evolved 2 slots: Propulsion x2 2262 | -8/Materials | Lost 3 parts (1p1n1w) 2482 | -8/Materials | Core integrity fell below 50% 2511 | -8/Materials | Core integrity fell below 20% 2514 | -8/Materials | Search patrols dispatched 2516 | -8/Materials | Self-destructed Last Messages --------------- K-01 Serf collects debris. Aluminum Leg destroyed. Critical hit (Burn: +37). U-05 Engineer builds a Wall. Knocked back. K-01 Serf collects debris. U-05 Engineer lays Concrete. The unstable cave ceiling collapses. K-01 Serf collects debris. U-05 Engineer builds a Wall. Penetrated by Slug. Knocked back. K-01 Serf cleans the Terminal. U-05 Engineer lays Concrete. ALERT: Heightened foreign activity detected, multiple search patrols dispatched. [Achievement: Suspicious] U-05 Engineer lays Concrete. Knocked back. U-05 Engineer builds a Door. Map ----- +----------------------------------------------------+ | # ## #????????????????????????? | | #""" ## #????????????????????????? | | #""" ## ##???????????????????????? | | #""" # #############???????????? | | # # ????????????? | | #""" + T ????????????? | | #""" # ^^ ????????????? | | #""" # ###########?????????????? | | # ##### #???????????????????????? | | # #???# #???????????????????????? | | # #???# #???????????????????????? | | #########???# #???????????????????????? | | ????????????# #???????????????????????? | | ????????????# #???????????????????????? | | ????????????# ###########?????????????? | | ????????????#g## T ! #?????????????? | | ???????###??# ## k #?????????????? | | ??###### ###%;#= [[ #?????????????? | | ?## # # %#* [[ #?????????????? | | # # +[ [ #?????????????? | | # =% # #=! """ #?????????????? | | # # ! """ #?????????????? | | # %#%* """ #?????????????? | | # =#*% * #?????????????? | | # !#u*%## ######?????????????? | | # *+!@%####??????????????????? | | # [ %=##?????????????????????? | | # # # ## #=H#??????????????????????? | | ?## =!#??????????????????????? | | ??## #!!#??????????????????????? | | ???# # #??????????????????????? | | ???#/ # #??????????????????????? | | ???# # #??????????????????????? | | ???# ! # #??????????????????????? | | ???# # #??????????????????????? | | ???# = + +??????????????????????? | | ???# # #??????????????????????? | | ???########## #??????????????????????? | | ???????????? ??????????????????????? | | ???????????? ??????????????????????? | | ???????????? ???????????????????????? | | ???????????? ???????????????????????? | | ??????????????????????????????????????? | | ??????????????????????????????????????? | | ??????????????????????????????????????? | | | | | | | | | | | +----------------------------------------------------+ Best States ------------- Heat Dissipation 45 Energy Generation 14 Energy Capacity 265 Matter Stores 450 Matter Capacity 450 Sight Range 16 Terrain Scan Density 10 Weapon Shielding 66 Evasion (%) 55 Item Schematics ----------------- None Robot Schematics ------------------ None Fabricated ------------ Nothing Repaired ---------- Nothing Studied --------- None Alien Tech Used ----------------- None Achievements -------------- Suspicious Challenges ------------ None Game ------ Seed ElectrostormNodeFragment Manual? 0 Play Time 00:17:22 Cumulative 11.6 hours Start 2025.10.23 @ 17:00:55 End 2025.10.23 @ 17:17:29 Sessions 1 Manual Loads 0 Difficulty Rogue Special Mode None Game No. 43 Rogue 43 Adventurer 0 Explorer 0 Win Type - Total 0 Types 0/0/0/0/0/0/0/0/0/0 Lore% 6 Gallery% 14 Achievement% 10 Wizard Run 0 Options --------- Layout 1 ASCII 0 Keyboard 0 Movement Arrows Keybinds 0 Fullscreen 1 Font 24/Smallcaps Map View 50x35 Zoom Use 0% Tactical HUD 0 Map Filters NONE Filters NONE Steam 1 RUN: 8d4ae6b6-b1cc-46e7-8118-814fd35b1bcf